Cogmind - Beta 15 @@@ ROGUE MODE // 2025.07.06 @ 10:49:14 Player: LameThyst Result: Destroyed by Autobeam Turret with Autobeam Performance ------------- Evolutions (0) 0 Regions Visited (2) 400 Robots Destroyed (38) 190 Value Destroyed (947) 947 Prototype IDs (0) 0 Alien Tech Used (0) 0 Bonus (0) 0 TOTAL SCORE: 1537 Bonus ------- None Cogmind --------- Core Integrity 0/250 Matter 262/300 Energy 160/160 System Corruption 1% Temperature Cool (12) Movement Treading (160) Location -10/Subcaves Parts ------- > --- POWER (1) -------- Light Nuclear Core > --- PROPULSION (2) --- Light Treads Spiked Treads > --- UTILITY (2) ------ Large Storage Unit Signal Interpreter > --- WEAPON (2) ------- Beam Cannon Light Cannon > --- INVENTORY (15) --- Ion Engine Light Treads Compact Wheel Improved Heat Sink Large Battery (200) Scrap Shield EM Pulse Gun Makeshift Laser Subdweller Beam Cannon Heavy Assault Rifle Battle Rifle Grenade Launcher Datajack Mining Laser Peak State ------------ > --- POWER ------------ Light Nuclear Core > --- PROPULSION ------- Light Treads Spiked Treads > --- UTILITY ---------- Large Storage Unit Signal Interpreter > --- WEAPON ----------- EM Shotgun Subdweller Machine Gun > --- INVENTORY -------- Ion Engine Light Treads Compact Wheel Improved Heat Sink Large Battery Scrap Shield EM Pulse Gun Makeshift Laser Beam Cannon Battle Rifle Light Cannon Grenade Launcher Datajack Mining Laser [Rating: 14] Favorites ----------- Power Light Nuclear Core Engine Ion Engine Power Core Light Nuclear Core Propulsion Light Treads Treads Light Treads Wheel Compact Wheel Utility Large Storage Unit Device Seismic Detector Storage Large Storage Unit Processor Signal Interpreter Weapon EM Shotgun Energy Gun EM Shotgun Energy Cannon Subdweller Beam Cannon Ballistic Gun Light Assault Rifle Ballistic Cannon Light Cannon Special Weapon Mining Laser Build | -11 -10 -10 ------- Run | Yrd Mat Sub Slots Evolved . | . . . Power . | . . . Propulsion . | . . . Utility . | . . . Weapon . | . . . Parts Attached 29 | 7 11 11 Power 3 | 1 2 . Engine 2 | 1 1 . Core 1 | . 1 . Reactor . | . . . Propulsion 8 | 2 3 3 Treads 6 | 1 2 3 Leg . | . . . Wheel 2 | 1 1 . Hover . | . . . Flight . | . . . Utility 6 | 2 2 2 Device 2 | 1 . 1 Storage 2 | 1 1 . Processor 2 | . 1 1 Hackware . | . . . Protection . | . . . Artifact . | . . . Weapon 12 | 2 4 6 Energy Gun 2 | . 2 . Energy Cannon 2 | . . 2 Ballistic Gun 5 | 2 1 2 Ballistic Cannon 1 | . . 1 Launcher . | . . . Special Weapon 2 | . 1 1 Impact Weapon . | . . . Slashing Weapon . | . . . Piercing Weapon . | . . . Special Melee Weapon . | . . . Unidentified Prototypes . | . . . Parts Lost 3 | . 2 1 Power . | . . . Propulsion . | . . . Utility 2 | . 1 1 Weapon 1 | . 1 . Highest Loss Streak 1 | . 1 1 To Critical Strikes . | . . . Average Backups 12 | 5 12 13 Power . | . 1 1 Propulsion 2 | 1 2 2 Utility 3 | . 3 3 Weapon 5 | 1 5 6 Tool/Special . | . . . Unused Backups 20 | 2 7 11 Power 3 | . 2 1 Propulsion 3 | 1 1 1 Utility 7 | 1 3 3 Weapon 6 | . 1 5 Tool/Special 1 | . . 1 Average Slot Usage (%) 98 | . 98 98 Engine 2 | . 8 . Core 11 | . 5 14 Treads 23 | . 14 27 Wheel 4 | . 13 . Device 4 | . 6 3 Storage 14 | . 14 14 Processor 8 | . 7 9 Energy Gun 9 | . 13 7 Energy Cannon 4 | . . 6 Ballistic Gun 13 | . 14 12 Peak Build Rating 14 | 8 11 14 Average Rating 11 | 6 9 12 On Entrance 6 | . 7 11 Naked Turns . | . . . Heaviest Build 36 | 13 30 36 Greatest Support 40 | 16 20 40 Greatest Overweight (x) 1 | . 1 1 Average Overweight (x) . | . . . Largest Inventory Capacity 15 | 8 15 15 Average Capacity 14 | 7 14 15 Most Carried 15 | 7 15 15 Average Carried 13 | 5 12 14 Final Capacity 15 | 8 15 15 Final Carried 15 | 6 15 15 Class Distribution -------------------- 100% | Mutant Dominant Class ---------------- Mutant | -10/Materials Mutant | -10/Subcaves Resources | -11 -10 -10 ----------- Run | Yrd Mat Sub Matter Collected 692 | 306 146 240 Remotely . | . . . Salvage Created 1482 | 185 880 417 Parts 82 | 13 42 27 Haulers Intercepted 2 | . 2 . Recyclers Shooed 1 | 1 . . Parts Field Recycled . | . . . Retrieved Matter . | . . . Parts Self-Destructed 15 | . . 15 Prevented 2 | . . 2 Kills | -11 -10 -10 ------- Run | Yrd Mat Sub Combat Hostiles Destroyed 25 | . 14 11 Guns 15 | . 12 3 Cannons 8 | . . 8 AOE 2 | . 2 . Classes Destroyed 10 | 3 3 4 Worker 2 | 2 . . Tunneler 3 | 3 . . Hauler 2 | . 2 . Recycler 2 | 1 1 . Turret 1 | . . 1 Watcher 3 | . 3 . Swarmer 5 | . . 5 Grunt 14 | . 14 . Sentry 1 | . . 1 Subdweller 5 | . . 5 Best Kill Streak 5 | 4 5 4 Combat Bots Only 4 | . 4 4 Max Kills in Single Turn 1 | 1 1 1 Gunslinging . | . . . Exploded 1 | . 1 . Melee . | . . . Uniques/NPCs Destroyed . | . . . Combat | -11 -10 -10 -------- Run | Yrd Mat Sub Hostile Shots Fired 137 | . 42 95 Missed 47 | . 7 40 Hits 90 | . 35 55 Projectile 90 | . 35 55 Critical Strikes 1 | . 1 . Damage Taken 1128 | . 553 575 Core 251 | . 167 84 Absorbed by Shields . | . . . Regen/Repaired (Parts) 28 | . 28 . Core Remaining (%) 100 | 100 . . Volleys Fired 103 | 18 48 37 Largest 2 | 2 2 2 Hottest 125 | 40 100 125 Shots Fired 190 | 36 89 65 Gun 157 | 36 87 34 Cannon 31 | . . 31 Launcher . | . . . Special 2 | . 2 . Kinetic 113 | 36 46 31 Thermal 22 | . 2 20 Explosive . | . . . Electromagnetic 55 | . 41 14 Robot Hit Streak 12 | 7 12 12 Robot Miss Streak 2 | 2 2 2 Penetration Max . | . . . Secondary Targets 2 | . 2 . Max Gunslinging Chain 1 | . 1 . Shots Hit Robots 131 | 24 63 44 Core Hits 78 | 13 45 20 Critical Kills 1 | . 1 . Critical Parts Destroyed . | . . . Critical Strikes 2 | . 1 1 Destroy 2 | . 1 1 Melee Attacks . | . . . Impact . | . . . Slashing . | . . . Piercing . | . . . Sneak Attacks . | . . . Combat Hostiles . | . . . Follow-up Attacks . | . . . Damage Inflicted 2025 | 215 1019 791 Guns 1295 | 215 795 285 Cannons 506 | . . 506 Explosions 224 | . 224 . Melee . | . . . Ramming . | . . . Kinetic 638 | 215 216 207 Thermal 655 | . 224 431 Explosive . | . . . Electromagnetic 732 | . 579 153 Impact . | . . . Slashing . | . . . Piercing . | . . . Highest Corruption 1 | . 1 1 Average Corruption 1 | . 1 1 Corruption Purged . | . . . Corruption Blocked . | . . . Effects 22 | . 1 21 Message Errors 9 | . . 9 Matter Fused 2 | . . 2 Heat Flow Errors 1 | . . 1 Energy Discharges 3 | . . 3 Data Loss (minor) 4 | . 1 3 Data Loss (major) 2 | . . 2 Misfires 1 | . . 1 Overload Shots . | . . . Overflow Damage 24 | . 1 23 Projectiles 23 | . . 23 Explosions 1 | . 1 . Melee . | . . . Knockbacks . | . . . Impact . | . . . Kinetic . | . . . Secondary . | . . . Self-Inflicted Damage 124 | . 124 . Shots 4 | . 4 . Rammed . | . . . Targets Rammed . | . . . Kicked . | . . . Crushed . | . . . Highest Temperature 142 | . 142 130 Average Temperature 41 | . 43 36 Received Heat Transfer 465 | . 261 204 Siege Activations . | . . . Martial Activations . | . . . Shielding Activations . | . . . Robots Disrupted 1 | . 1 . Combat Hostiles . | . . . Robots Corrupted . | . . . Combat Hostiles . | . . . Parts Fried . | . . . Impact Corruptions . | . . . Robots Melted . | . . . Combat Hostiles . | . . . Parts Melted 2 | . . 2 Heat Transferred 879 | . 250 629 Parts Sabotaged . | . . . Parts Stolen . | . . . Parts Stripped . | . . . Power Chain Reactions 4 | . 4 . Alert | -11 -10 -10 ------- Run | Yrd Mat Sub Maximum Alert Level . | . . . Low Security (%) 100 | 100 100 . Level 1 . | . . . Level 2 . | . . . Level 3 . | . . . Level 4 . | . . . Level 5 . | . . . High Security . | . . . Max Security . | . . . Peak Influence 165 | 10 165 . Initial . | . . . Average 52 | 1 67 . Influence Increases 697 | 30 497 170 Destroy 0b10 Robot/C 420 | . 280 140 Destroy 0b10 Robot/NC 60 | 30 30 . Destroy Leader 70 | . 70 . Successful Hack 25 | . 25 . Select Force Hacks 30 | . 30 . Disable Machine 30 | . 30 . Destroy Structure 17 | . 17 . Lose Combat Pursuer 45 | . 15 30 Influence Decreases 549 | 30 427 92 Entered New Map 34 | . . 34 Time Decay 463 | 30 375 58 Lost Part 20 | . 20 . Purge Threat 32 | . 32 . Squads Dispatched 3 | . 3 . Investigation 2 | . 2 . Extermination . | . . . Reinforcement 1 | . 1 . Assault . | . . . Garrison . | . . . Intercept . | . . . Searches Triggered . | . . . Construction Impeded . | . . . Haulers Reinforced . | . . . Active Scanning Responses . | . . . Cargo Convoy Interrupts . | . . . Stealth | -11 -10 -10 --------- Run | Yrd Mat Sub Distress Signals 1 | . 1 . Communications Jammed . | . . . Distress Signals . | . . . Times Spotted 36 | . 21 15 Peak Tracking Total 5 | . 4 5 Tactical Retreats 2 | . 1 1 Traps | -11 -10 -10 ------- Run | Yrd Mat Sub Traps Triggered 1 | . 1 . Indirectly . | . . . Trap Hack Attempts . | . . . Triggered . | . . . Disarmed 1 | . 1 . Reprogrammed . | . . . Reused . | . . . Traps Extracted . | . . . Installed . | . . . Triggered . | . . . Machines | -11 -10 -10 ---------- Run | Yrd Mat Sub Machines Disabled 4 | . 2 2 Max in Single Turn 1 | . 1 1 Machines Repaired . | . . . Machines Dismantled . | . . . Machines Sabotaged . | . . . Overloaded Fab Kills . | . . . Hacking | -11 -10 -10 --------- Run | Yrd Mat Sub Machines Accessed 9 | . 9 . Terminals 7 | . 7 . Fabricators . | . . . Repair Stations 1 | . 1 . Recycling Units 1 | . 1 . Scanalyzers . | . . . Garrison Access . | . . . Total Hacks 29 | . 29 . Successful 18 | . 18 . Failed 11 | . 11 . Catastrophic . | . . . Database Lockouts . | . . . Manual 16 | . 16 . Terminals 24 | . 24 . Fabricators . | . . . Repair Stations 4 | . 4 . Recycling Units 1 | . 1 . Scanalyzers . | . . . Garrison Access . | . . . Terminal Hacks 6 | . 6 . Robot Analysis 1 | . 1 . Unreport Threat 2 | . 2 . Locate Traps 1 | . 1 . Disarm Traps 1 | . 1 . Patrol Status 1 | . 1 . Fabricator Hacks . | . . . Repair Station Hacks 4 | . 4 . Scan Component 2 | . 2 . Repair 2 | . 2 . Recycling Unit Hacks . | . . . Scanalyzer . | . . . Garrison Access Hacks . | . . . Unauthorized Hacks 8 | . 8 . Terminals 7 | . 7 . Botnet 7 | . 7 . Fabricators . | . . . Repair Stations . | . . . Recycling Units 1 | . 1 . Tunnel 1 | . 1 . Scanalyzers . | . . . Garrison Access . | . . . Data Cores Recovered . | . . . Used . | . . . Hacking Detections 6 | . 6 . Full Trace Events 2 | . 2 . Feedback Events . | . . . Feedback Blocked . | . . . Robot Schematics Acquired . | . . . Robots Built . | . . . Authchips . | . . . Time . | . . . Total Robot Build Rating . | . . . Part Schematics Acquired . | . . . Parts Built . | . . . Authchips . | . . . Time . | . . . Total Part Build Rating . | . . . Parts Repaired 2 | . 2 . Time 64 | . 64 . Parts Recycled . | . . . Recycled Matter . | . . . Retrieved Matter . | . . . Retrieved Components . | . . . Parts Scanalyzed . | . . . Part Schematics Acquired . | . . . Parts Damaged . | . . . Bothacking | -11 -10 -10 ------------ Run | Yrd Mat Sub Used RIF Installer . | . . . Robots Hacked . | . . . Non-combat . | . . . Combat . | . . . Robot Hacks Applied . | . . . Relay Couplers Released . | . . . Fabnet Peak Effective % . | . . . Robots Rewired . | . . . Allies Hacked . | . . . Hacks Repelled . | . . . Allies | -11 -10 -10 -------- Run | Yrd Mat Sub Total Allies . | . . . Largest Group . | . . . Highest-Rated Group . | . . . Highest-Rated Ally . | . . . Total Orders . | . . . Ally Attacks . | . . . Total Damage . | . . . Kills . | . . . Allies Corrupted . | . . . Allies Melted . | . . . Intel | -11 -10 -10 ------- Run | Yrd Mat Sub Active Infowar (turns) 1335 | 259 531 545 Sensors 545 | . . 545 Seismic 790 | 259 531 . Robot Analysis Total 1 | . 1 . Derelict Logs Recovered 3 | . . 3 Drone Launches . | . . . Drone Recoveries . | . . . Exploration | -11 -10 -10 ------------- Run | Yrd Mat Sub Turns Passed 3878 | 317 1140 2421 Spaces Moved 2259 | 160 676 1423 Core 4 | 4 . . Treads 1417 | . 5 1412 Legs . | . . . Wheels 838 | 156 671 11 Hover . | . . . Flight . | . . . Fastest Speed 50 | 50 100 115 Average Speed 141 | 98 113 159 Slowest Speed 240 | 100 240 160 Overloaded Moves . | . . . Propulsion Burnouts . | . . . Robots Hopped . | . . . Potential Cave-ins . | . . . Cave-ins Triggered . | . . . Exploration Rate (%) 59 | 8 98 72 Regions Visited 2 Branch Regions 1 Pre-discovered Areas 3 | . 1 2 Known Exits Taken 1 | . 1 . Unknown Exits Taken 1 | 1 . . Scrap Searched 8 | . . 8 Spaces Dug . | . . . Terrain Destroyed 15 | . 15 . Melee . | . . . Projectile . | . . . AOE 15 | . 15 . Terrain Rammed . | . . . Walls Destroyed . | . . . Machines Disabled . | . . . Actions | -11 -10 -10 --------- Run | Yrd Mat Sub Total 2770 | 288 972 1510 Wait 304 | 93 191 20 Move 2257 | 159 675 1423 Hop . | . . . Pick Up 39 | 9 24 6 Fast Attach 11 | 6 2 3 Attach 5 | 1 2 2 Detach 1 | . . 1 Swap 20 | . 11 9 Drop 30 | 2 19 9 Fire 103 | 18 48 37 Melee . | . . . Ram . | . . . Kick . | . . . Crush . | . . . Escape Stasis . | . . . Rewire . | . . . Trap . | . . . Miscellaneous . | . . . Route ------- -11/Scrapyard -10/Materials (discovered 6 exits: *Mat x3 / *Min x2 / *Sub) -10/Subcaves (discovered 3 exits: *Mat x2 / *Rec) History --------- Turn | Location | Event 13 | -11/Scrapyard | Discovered new exit (range 16) 318 | -11/Scrapyard | Entered Materials 319 | -10/Materials | Build established: Mutant 455 | -10/Materials | Discovered new exit (range 16) 536 | -10/Materials | Discovered new exit (range 5) 890 | -10/Materials | Identified exit to Mines 960 | -10/Materials | Core integrity fell below 50% 1093 | -10/Materials | Discovered new exit (range 15) 1109 | -10/Materials | Identified exit to Materials 1162 | -10/Materials | Discovered exit to Mines (range 12) 1271 | -10/Materials | Discovered exit to Materials (range 5) 1344 | -10/Materials | Repaired Com. Wheel 1389 | -10/Materials | Repaired Lgt. Nuclear Core 1449 | -10/Materials | Discovered new exit (range 8) 1457 | -10/Materials | Identified exit to Subcaves 1458 | -10/Materials | Entered Subcaves 1671 | -10/Subcaves | Shifting Twisted Machinery released Scrap Shield 1674 | -10/Subcaves | Shifting Twisted Machinery released Battle Rifle 2227 | -10/Subcaves | Disturbed a concealed Subdweller 2414 | -10/Subcaves | Discovered new exit (range 6) 2425 | -10/Subcaves | Identified exit to Materials 2658 | -10/Subcaves | Disturbed a concealed Subdweller 2665 | -10/Subcaves | Learned location of Zion (-6) 2836 | -10/Subcaves | Met a Zionite searching for "candidates" 3539 | -10/Subcaves | Learned Materials stockpile data 3564 | -10/Subcaves | Identified exit to Recycling 3650 | -10/Subcaves | A swath of the cavern ceiling suddenly collapsed 3687 | -10/Subcaves | Core integrity fell below 20% 3794 | -10/Subcaves | Discovered exit to Materials (range 14) 3879 | -10/Subcaves | Destroyed by Autobeam Turret with Autobeam Last Messages --------------- 03821_ S-10 Pest destroyed. 03827_ Destroyed Flight Unit. 03827_ Flight Unit melted. 03827_ S-10 Pest destroyed. 03831_ Lgt. Ion Engine fries itself beyond repair. 03833_ Lgt. Assault Rifle fries itself beyond repair. 03833_ Acquired 14 matter. 03834_ Lgt. Assault Rifle fries itself beyond repair. 03835_ Subatomizers dissect the Sub. Optics. 03835_ Acquired 2 matter. 03837_ Flight Unit fries itself beyond repair. 03859_ Machine disabled. 03862_ Sub. Beam Cannon shoots sparks and powers down. 03869_ Autobeam Turret destroyed. 03872_ Machine disabled. Map ----- +----------------------------------------------------+ | ?????????????#"" #### ## ### ##?# | | ?????????????# "##= # #?## ### | | ?????????????# "" "%"! ## #### | | ?????????????#""" "&&&" ## ### | | ?????????????#""" """ " ### ## | | ?????????????##""""" "#### ## ## ##### | | ??????????????#########??## ## #### #??# | | ??????????????????????????# #####?## #### | | ??????????????????????????###### ##???# | | ??????????????????????????????## ##??# | | ??????????????????????????????# #?# # ## | | ??????????????????????????????# ## ###### | | ??????????????????????????????# ### #????? | | ?????????????????????????????## ### ?????? | | ?????????????????????????????# ### ?????? | | ?????????????????####????????### ##? ?????? | | ????????####????# ##?????????# #### ?????? | | ???????? #?### #?????????## ##### ?????? | | ????????? ## #??????????# ###?#?????? | | ?????????# #?###??####### ##??????? | | ??????????# #?# ##? """### ##?????? | | ??#??????## ## #? # #?# #?###?? | | ?## ?????# ## #??# # "#?# ## #?? | | ## ????# #?## t "### #?? | | #### < ### [ %>## ##?? | | @ % "### ##??? | | ## ## ##??? | | ## ##??? "## #??# | | ?????# ### ###??????""### #### | | ?????# % ##?????????#?# ## ## | | ?????#### % ##??????????## ### | | ???????## % ##??????????# #?# ### | | ??????## #??????????## ##?# ##?# | | ????### ##???????????###???####??# | | ?#### ###????????????????????????# | | ?# #####??????????????????????????# | | ?# ##??????????????????????????????# | | ?####### #???????????????????????????????# | | ???????#### #???????????????????????????????? | | ?#???????##&=# ##??????????????????????????????? | | ?"###????#"%!% ######?????????????????????????? | | ?#""??####"&![ ## ##????????????????????????? | | ?#"##### # # #????????????????????????? | | ##"#" " "[ ### #???????????????????????? | | #" " "## """ #?## ####???????????????????????? | | ""###"# ""##?## ##??????????????????????????? | | "##?#### ""#??#####???????????????????????????? | | "##??## #??????????????????????????????????? | | ##???# #??????????????????????????????????? | | ???### " ##??????????????????????????????????? | +----------------------------------------------------+ Best States ------------- Heat Dissipation 25 Energy Generation 14 Energy Capacity 250 Matter Stores 300 Matter Capacity 300 Sight Range 16 Robot Scan Range 14 Terrain Scan Density 10 Evasion (%) 40 Recoil Reduction 2 Item Schematics ----------------- None Robot Schematics ------------------ None Fabricated ------------ Nothing Repaired ---------- Com. Wheel | 46% | -10/Materials Lgt. Nuclear Core | 76% | -10/Materials Alien Tech Used ----------------- None Achievements -------------- Brute Force Quantum Hacking Challenges ------------ None Game ------ Seed ShadingSupersonicScanner Manual? 0 Play Time 00:34:54 Cumulative 58.2 hours Start 2025.07.06 @ 10:12:50 End 2025.07.06 @ 10:49:14 Sessions 1 Manual Loads 0 Difficulty Rogue Special Mode None Game No. 66 Rogue 66 Adventurer 0 Explorer 0 Win Type - Total 0 Types 0/0/0/0/0/0/0/0/0/0 Lore% 21 Gallery% 36 Achievement% 29 Wizard Run 0 Options --------- Layout 1 ASCII 0 Keyboard 0 Movement Mouse Keybinds 0 Fullscreen 2 Font 48/Smallcaps Map View 50x35 Zoom Use 0% Tactical HUD 1 Map Filters NONE Filters NONE Steam 0 RUN: 74810619-5334-4eb6-90b8-597c38af1b7a